[Event "Titled Tuesday Blitz January 03 Late 2023"]
[White "Leenhouts, Koen"]
[Black "Roman, Rodrigo"]
[WhiteFideId "1008439"]
[BlackFideId "3701220"]
[WhiteElo "2447"]
[BlackElo "2058"]
[Result "1-0"]
[Round "03"]
[TimeControl "180+2"]
[Date "2023.01.03"]
[WhiteClock "0:00:23"]
[BlackClock "0:00:03"]

1. e4 {[%clk 0:03:00]}  c5 {[%clk 0:02:51]} 2. Nf3 {[%clk 0:03:00]}  Nc6 {[%clk 0:02:48]} 3. c3 {[%clk 0:02:58]}  Nf6 {[%clk 0:02:48]} 4. e5 {[%clk 0:02:57]}  Nd5 {[%clk 0:02:47]} 5. d4 {[%clk 0:02:58]}  cxd4 {[%clk 0:02:48]} 6. cxd4 {[%clk 0:02:58]}  d6 {[%clk 0:02:48]} 7. Bc4 {[%clk 0:02:56]}  Nb6 {[%clk 0:02:40]} 8. Bb3 {[%clk 0:02:54]}  d5 {[%clk 0:02:40]} 9. h3 {[%clk 0:02:47]}  e6 {[%clk 0:02:37]} 10. O-O {[%clk 0:02:45]}  Be7 {[%clk 0:02:37]} 11. Nc3 {[%clk 0:02:41]}  Bd7 {[%clk 0:02:35]} 12. Bf4 {[%clk 0:02:36]}  h6 {[%clk 0:02:34]} 13. Re1 {[%clk 0:02:36]}  Na5 {[%clk 0:02:33]} 14. Bc2 {[%clk 0:02:34]}  Rc8 {[%clk 0:02:32]} 15. Qe2 {[%clk 0:02:29]}  a6 {[%clk 0:02:27]} 16. Rac1 {[%clk 0:02:26]}  Nbc4 {[%clk 0:02:27]} 17. Bb1 {[%clk 0:02:19]}  b5 {[%clk 0:02:25]} 18. Bg3 {[%clk 0:02:14]}  b4 {[%clk 0:02:23]} 19. Nd1 {[%clk 0:02:06]}  Bb5 {[%clk 0:02:22]} 20. Bd3 {[%clk 0:01:56]}  Qd7 {[%clk 0:02:12]} 21. Ne3 {[%clk 0:01:48]}  O-O {[%clk 0:02:11]} 22. Ng4 {[%clk 0:01:46]}  Nb6 {[%clk 0:02:04]} 23. Bf4 {[%clk 0:01:39]}  h5 {[%clk 0:01:57]} 24. Ne3 {[%clk 0:01:31]}  Bxd3 {[%clk 0:01:57]} 25. Qxd3 {[%clk 0:01:28]}  Qb5 {[%clk 0:01:52]} 26. Qb1 {[%clk 0:01:24]}  Nbc4 {[%clk 0:01:39]} 27. Nf1 {[%clk 0:01:18]}  b3 {[%clk 0:01:36]} 28. a3 {[%clk 0:01:12]}  Nb6 {[%clk 0:01:29]} 29. Bg5 {[%clk 0:01:02]}  Bxg5 {[%clk 0:01:22]} 30. Nxg5 {[%clk 0:00:58]}  g6 {[%clk 0:01:18]} 31. Nxe6 {[%clk 0:00:54]}  fxe6 {[%clk 0:01:17]} 32. Qxg6+ {[%clk 0:00:47]}  Kh8 {[%clk 0:01:18]} 33. Qxh5+ {[%clk 0:00:45]}  Kg7 {[%clk 0:01:19]} 34. Qg5+ {[%clk 0:00:44]}  Kh7 {[%clk 0:01:06]} 35. Rxc8 {[%clk 0:00:26]}  Nxc8 {[%clk 0:00:54]} 36. Re3 {[%clk 0:00:26]}  Rf7 {[%clk 0:00:21]} 37. Rg3 {[%clk 0:00:25]}  Ne7 {[%clk 0:00:03]} 38. Qh5# {[%clk 0:00:23]} 1-0


[Site "https://www.chess.com"]

[Event "Titled Tuesday Blitz January 03 Late 2023"]
[White "Jorajuria Mendoza, Algol"]
[Black "Yang, Kevin"]
[WhiteFideId "5128897"]
[BlackFideId "30908485"]
[WhiteElo "2069"]
[BlackElo "2096"]
[Result "0-1"]
[Round "03"]
[TimeControl "180+2"]
[Date "2023.01.03"]
[WhiteClock "0:00:04"]
[BlackClock "0:00:04"]

1. e4 {[%clk 0:02:58]}  e6 {[%clk 0:02:58]} 2. Qe2 {[%clk 0:02:57]}  a6 {[%clk 0:02:57]} 3. b4 {[%clk 0:02:56]}  Bxb4 {[%clk 0:02:43]} 4. Bb2 {[%clk 0:02:56]}  Bf8 {[%clk 0:02:44]} 5. Nf3 {[%clk 0:02:54]}  b6 {[%clk 0:02:41]} 6. h4 {[%clk 0:02:49]}  h6 {[%clk 0:02:29]} 7. h5 {[%clk 0:02:40]}  Bb7 {[%clk 0:02:23]} 8. Qe3 {[%clk 0:02:21]}  Nf6 {[%clk 0:02:10]} 9. e5 {[%clk 0:02:13]}  Nd5 {[%clk 0:02:04]} 10. Qd4 {[%clk 0:02:10]}  Nc6 {[%clk 0:01:54]} 11. Qg4 {[%clk 0:02:10]}  b5 {[%clk 0:01:42]} 12. a4 {[%clk 0:01:57]}  b4 {[%clk 0:01:34]} 13. Bc4 {[%clk 0:01:54]}  Nce7 {[%clk 0:01:26]} 14. a5 {[%clk 0:01:41]}  d6 {[%clk 0:01:15]} 15. d3 {[%clk 0:01:34]}  c5 {[%clk 0:00:52]} 16. Nbd2 {[%clk 0:01:29]}  Nc3 {[%clk 0:00:37]} 17. exd6 {[%clk 0:01:18]}  Qxd6 {[%clk 0:00:35]} 18. Bxc3 {[%clk 0:01:06]}  bxc3 {[%clk 0:00:36]} 19. Ne4 {[%clk 0:01:06]}  Qc7 {[%clk 0:00:30]} 20. O-O {[%clk 0:00:56]}  f5 {[%clk 0:00:25]} 21. Qg3 {[%clk 0:00:56]}  Qxg3 {[%clk 0:00:24]} 22. Nxg3 {[%clk 0:00:57]}  Bd5 {[%clk 0:00:23]} 23. Bxd5 {[%clk 0:00:51]}  exd5 {[%clk 0:00:22]} 24. Nh4 {[%clk 0:00:52]}  f4 {[%clk 0:00:21]} 25. Ne2 {[%clk 0:00:52]}  d4 {[%clk 0:00:21]} 26. Nxf4 {[%clk 0:00:52]}  Kf7 {[%clk 0:00:21]} 27. Rab1 {[%clk 0:00:50]}  Nc6 {[%clk 0:00:17]} 28. Rb7+ {[%clk 0:00:50]}  Be7 {[%clk 0:00:17]} 29. Nhg6 {[%clk 0:00:47]}  Rhb8 {[%clk 0:00:17]} 30. Rfb1 {[%clk 0:00:45]}  Rxb7 {[%clk 0:00:17]} 31. Rxb7 {[%clk 0:00:46]}  Ke8 {[%clk 0:00:05]} 32. Ne6 {[%clk 0:00:44]}  Rc8 {[%clk 0:00:06]} 33. Nxg7+ {[%clk 0:00:42]}  Kd8 {[%clk 0:00:05]} 34. Ne6+ {[%clk 0:00:30]}  Ke8 {[%clk 0:00:05]} 35. Nc7+ {[%clk 0:00:31]}  Kf7 {[%clk 0:00:05]} 36. Nd5 {[%clk 0:00:30]}  Re8 {[%clk 0:00:05]} 37. Rc7 {[%clk 0:00:30]}  Ke6 {[%clk 0:00:04]} 38. Rxc6+ {[%clk 0:00:29]}  Kxd5 {[%clk 0:00:04]} 39. Rxa6 {[%clk 0:00:28]}  Bd6 {[%clk 0:00:05]} 40. g3 {[%clk 0:00:24]}  Re2 {[%clk 0:00:04]} 41. Rb6 {[%clk 0:00:07]}  Rxc2 {[%clk 0:00:04]} 42. Rb1 {[%clk 0:00:07]}  Rb2 {[%clk 0:00:04]} 43. Rc1 {[%clk 0:00:06]}  Ra2 {[%clk 0:00:04]} 44. f4 {[%clk 0:00:06]}  Rxa5 {[%clk 0:00:04]} 45. f5 {[%clk 0:00:07]}  Be5 {[%clk 0:00:03]} 46. Ne7+ {[%clk 0:00:04]}  Kd6 {[%clk 0:00:03]} 47. Ng8 {[%clk 0:00:05]}  Ra8 {[%clk 0:00:02]} 48. Nxh6 {[%clk 0:00:04]}  Rf8 {[%clk 0:00:02]} 49. g4 {[%clk 0:00:04]}  Bf4 {[%clk 0:00:03]} 50. Ra1 {[%clk 0:00:03]}  Bxh6 {[%clk 0:00:03]} 51. Ra6+ {[%clk 0:00:04]}  Kd5 {[%clk 0:00:03]} 52. Rxh6 {[%clk 0:00:04]}  c2 {[%clk 0:00:04]} 0-1


[Site "https://www.chess.com"]

[Event "Titled Tuesday Blitz January 03 Late 2023"]
[White "Egorov, Evgeny"]
[Black "SilverCityIndigo"]
[WhiteFideId "13700421"]
[WhiteElo "2294"]
[BlackElo "2335"]
[Result "1-0"]
[Round "03"]
[TimeControl "180+2"]
[Date "2023.01.03"]
[WhiteClock "0:00:33"]
[BlackClock "0:00:06"]

1. e4 {[%clk 0:02:57]}  c5 {[%clk 0:03:00]} 2. Nc3 {[%clk 0:02:56]}  Nc6 {[%clk 0:02:59]} 3. Nge2 {[%clk 0:02:56]}  a6 {[%clk 0:02:59]} 4. g3 {[%clk 0:02:54]}  b5 {[%clk 0:02:59]} 5. Bg2 {[%clk 0:02:54]}  Bb7 {[%clk 0:03:00]} 6. O-O {[%clk 0:02:54]}  e6 {[%clk 0:02:59]} 7. d4 {[%clk 0:02:53]}  cxd4 {[%clk 0:02:58]} 8. Nxd4 {[%clk 0:02:54]}  Nf6 {[%clk 0:02:56]} 9. Re1 {[%clk 0:02:52]}  b4 {[%clk 0:02:36]} 10. Nd5 {[%clk 0:02:51]}  Bc5 {[%clk 0:02:19]} 11. Nb3 {[%clk 0:02:33]}  Be7 {[%clk 0:01:57]} 12. Nxe7 {[%clk 0:02:25]}  Qxe7 {[%clk 0:01:57]} 13. Bf4 {[%clk 0:02:22]}  e5 {[%clk 0:01:55]} 14. Be3 {[%clk 0:02:19]}  d6 {[%clk 0:01:51]} 15. a3 {[%clk 0:02:14]}  O-O {[%clk 0:01:47]} 16. axb4 {[%clk 0:02:11]}  Nxb4 {[%clk 0:01:47]} 17. c3 {[%clk 0:02:09]}  Nc6 {[%clk 0:01:47]} 18. h3 {[%clk 0:01:50]}  Qe6 {[%clk 0:01:46]} 19. Ra3 {[%clk 0:01:44]}  Rfd8 {[%clk 0:01:40]} 20. Qd3 {[%clk 0:01:34]}  a5 {[%clk 0:01:37]} 21. Rea1 {[%clk 0:01:24]}  a4 {[%clk 0:01:26]} 22. Nd2 {[%clk 0:01:19]}  Ba6 {[%clk 0:01:20]} 23. Qc2 {[%clk 0:01:16]}  Bb5 {[%clk 0:01:13]} 24. c4 {[%clk 0:01:15]}  Ba6 {[%clk 0:00:44]} 25. Rxa4 {[%clk 0:01:14]}  Bb7 {[%clk 0:00:28]} 26. Rxa8 {[%clk 0:01:13]}  Rxa8 {[%clk 0:00:29]} 27. Rxa8+ {[%clk 0:01:12]}  Bxa8 {[%clk 0:00:30]} 28. Qa4 {[%clk 0:01:12]}  Qc8 {[%clk 0:00:30]} 29. b4 {[%clk 0:01:06]}  h5 {[%clk 0:00:30]} 30. b5 {[%clk 0:01:05]}  Nd4 {[%clk 0:00:29]} 31. Qa7 {[%clk 0:00:57]}  Nd7 {[%clk 0:00:28]} 32. h4 {[%clk 0:00:47]}  Nc2 {[%clk 0:00:22]} 33. Bh3 {[%clk 0:00:44]}  Nxe3 {[%clk 0:00:13]} 34. Bxd7 {[%clk 0:00:43]}  Qd8 {[%clk 0:00:07]} 35. fxe3 {[%clk 0:00:43]}  g5 {[%clk 0:00:05]} 36. Bc6 {[%clk 0:00:41]}  Bxc6 {[%clk 0:00:04]} 37. bxc6 {[%clk 0:00:41]}  gxh4 {[%clk 0:00:05]} 38. c7 {[%clk 0:00:40]}  Qg5 {[%clk 0:00:05]} 39. c8=Q+ {[%clk 0:00:39]}  Kg7 {[%clk 0:00:06]} 40. Nf1 {[%clk 0:00:37]}  hxg3 {[%clk 0:00:05]} 41. Qf5 {[%clk 0:00:36]}  Qh4 {[%clk 0:00:05]} 42. Qaxf7+ {[%clk 0:00:33]}  Kh6 {[%clk 0:00:06]} 43. Q7h7# {[%clk 0:00:33]} 1-0


[Site "https://www.chess.com"]

[Event "Titled Tuesday Blitz January 03 Late 2023"]
[White "Ankerst, Mihael"]
[Black "Bayo Milagro, Alvaro"]
[WhiteFideId "14602369"]
[BlackFideId "22275240"]
[WhiteElo "2370"]
[BlackElo "2287"]
[Result "0-1"]
[Round "03"]
[TimeControl "180+2"]
[Date "2023.01.03"]
[WhiteClock "0:00:18"]
[BlackClock "0:00:50"]

1. e4 {[%clk 0:02:51]}  e5 {[%clk 0:02:59]} 2. Nf3 {[%clk 0:02:51]}  Nc6 {[%clk 0:03:00]} 3. Nc3 {[%clk 0:02:51]}  Nf6 {[%clk 0:03:00]} 4. d4 {[%clk 0:02:52]}  exd4 {[%clk 0:03:00]} 5. Nxd4 {[%clk 0:02:52]}  Bb4 {[%clk 0:03:01]} 6. Nxc6 {[%clk 0:02:53]}  bxc6 {[%clk 0:03:01]} 7. Bd3 {[%clk 0:02:53]}  O-O {[%clk 0:03:02]} 8. O-O {[%clk 0:02:53]}  d5 {[%clk 0:03:02]} 9. exd5 {[%clk 0:02:54]}  cxd5 {[%clk 0:03:03]} 10. Bg5 {[%clk 0:02:54]}  c6 {[%clk 0:03:03]} 11. Ne2 {[%clk 0:02:54]}  h6 {[%clk 0:02:59]} 12. Bh4 {[%clk 0:02:54]}  Be7 {[%clk 0:02:59]} 13. Nd4 {[%clk 0:02:54]}  Bd7 {[%clk 0:02:55]} 14. Qf3 {[%clk 0:02:55]}  Re8 {[%clk 0:02:49]} 15. Rfe1 {[%clk 0:02:54]}  Rb8 {[%clk 0:02:40]} 16. b3 {[%clk 0:02:53]}  Ne4 {[%clk 0:02:31]} 17. Bxe7 {[%clk 0:02:48]}  Qxe7 {[%clk 0:02:31]} 18. Bxe4 {[%clk 0:02:49]}  dxe4 {[%clk 0:02:31]} 19. Qc3 {[%clk 0:02:49]}  Qf6 {[%clk 0:02:03]} 20. Rad1 {[%clk 0:02:48]}  Bg4 {[%clk 0:02:02]} 21. Rd2 {[%clk 0:02:43]}  Rbd8 {[%clk 0:02:00]} 22. h3 {[%clk 0:02:41]}  Bc8 {[%clk 0:01:50]} 23. Red1 {[%clk 0:02:39]}  Qg5 {[%clk 0:01:35]} 24. Kh1 {[%clk 0:01:17]}  e3 {[%clk 0:01:32]} 25. fxe3 {[%clk 0:01:14]}  Rxe3 {[%clk 0:01:31]} 26. Qxc6 {[%clk 0:01:14]}  Bxh3 {[%clk 0:01:25]} 27. Nf3 {[%clk 0:00:22]}  Bxg2+ {[%clk 0:01:20]} 28. Kh2 {[%clk 0:00:20]}  Bxf3 {[%clk 0:00:50]} 29. Rxd8+ {[%clk 0:00:18]}  Kh7 {[%clk 0:00:50]} 0-1


[Site "https://www.chess.com"]

[Event "Titled Tuesday Blitz January 03 Late 2023"]
[White "Taboas Rodriguez, Daniel"]
[Black "Mendez Fortes, Eduardo Jesus"]
[WhiteFideId "2208466"]
[BlackFideId "3502376"]
[WhiteElo "2371"]
[BlackElo "2250"]
[Result "0-1"]
[Round "03"]
[TimeControl "180+2"]
[Date "2023.01.03"]
[WhiteClock "0:00:32"]
[BlackClock "0:00:09"]

1. d4 {[%clk 0:02:58]}  Nf6 {[%clk 0:02:59]} 2. Nf3 {[%clk 0:02:59]}  d5 {[%clk 0:02:59]} 3. c4 {[%clk 0:03:00]}  e6 {[%clk 0:02:59]} 4. Bg5 {[%clk 0:02:59]}  Bb4+ {[%clk 0:02:56]} 5. Nc3 {[%clk 0:02:59]}  dxc4 {[%clk 0:02:56]} 6. e4 {[%clk 0:02:56]}  b5 {[%clk 0:02:56]} 7. a4 {[%clk 0:02:55]}  c6 {[%clk 0:02:56]} 8. e5 {[%clk 0:02:55]}  h6 {[%clk 0:02:56]} 9. exf6 {[%clk 0:02:54]}  hxg5 {[%clk 0:02:56]} 10. fxg7 {[%clk 0:02:55]}  Rg8 {[%clk 0:02:56]} 11. h4 {[%clk 0:02:55]}  g4 {[%clk 0:02:57]} 12. Ne5 {[%clk 0:02:54]}  Rxg7 {[%clk 0:02:49]} 13. h5 {[%clk 0:02:46]}  f5 {[%clk 0:02:41]} 14. g3 {[%clk 0:02:28]}  Bb7 {[%clk 0:02:30]} 15. Bg2 {[%clk 0:02:28]}  Nd7 {[%clk 0:02:07]} 16. h6 {[%clk 0:02:22]}  Rh7 {[%clk 0:02:04]} 17. Bxc6 {[%clk 0:02:17]}  Bxc6 {[%clk 0:01:51]} 18. Nxc6 {[%clk 0:02:18]}  Bxc3+ {[%clk 0:01:34]} 19. bxc3 {[%clk 0:02:18]}  Qb6 {[%clk 0:01:20]} 20. axb5 {[%clk 0:02:17]}  Qxb5 {[%clk 0:01:19]} 21. Nb4 {[%clk 0:02:03]}  a5 {[%clk 0:01:09]} 22. Qe2 {[%clk 0:01:46]}  Kf7 {[%clk 0:00:58]} 23. Nc2 {[%clk 0:01:30]}  Qc6 {[%clk 0:00:20]} 24. O-O {[%clk 0:01:26]}  Rxh6 {[%clk 0:00:19]} 25. f3 {[%clk 0:01:20]}  Rah8 {[%clk 0:00:19]} 26. Qg2 {[%clk 0:01:19]}  Kg7 {[%clk 0:00:16]} 27. Rxa5 {[%clk 0:01:14]}  gxf3 {[%clk 0:00:16]} 28. Rxf3 {[%clk 0:00:38]}  Rh1+ {[%clk 0:00:16]} 29. Kf2 {[%clk 0:00:38]}  R1h2 {[%clk 0:00:13]} 30. Ra7 {[%clk 0:00:39]}  Rxg2+ {[%clk 0:00:12]} 31. Kxg2 {[%clk 0:00:40]}  Kg6 {[%clk 0:00:12]} 32. Nb4 {[%clk 0:00:40]}  Qd6 {[%clk 0:00:10]} 33. Re3 {[%clk 0:00:39]}  f4 {[%clk 0:00:09]} 34. gxf4 {[%clk 0:00:36]}  Nf6 {[%clk 0:00:09]} 35. Rg3+ {[%clk 0:00:35]}  Kf5 {[%clk 0:00:09]} 36. Ra5+ {[%clk 0:00:33]}  Nd5 {[%clk 0:00:09]} 37. Nxd5 {[%clk 0:00:31]}  exd5 {[%clk 0:00:09]} 38. Rxd5+ {[%clk 0:00:32]}  Qxd5+ {[%clk 0:00:09]} 0-1


[Site "https://www.chess.com"]

[Event "Titled Tuesday Blitz January 03 Late 2023"]
[White "Yashmetov, Mikhail"]
[Black "Pace, Christopher"]
[WhiteFideId "24198900"]
[BlackFideId "2610167"]
[WhiteElo "2323"]
[BlackElo "2053"]
[Result "1-0"]
[Round "03"]
[TimeControl "180+2"]
[Date "2023.01.03"]
[WhiteClock "0:00:34"]
[BlackClock "0:00:18"]

1. d4 {[%clk 0:03:00]}  Nf6 {[%clk 0:02:56]} 2. c4 {[%clk 0:03:01]}  e5 {[%clk 0:02:55]} 3. dxe5 {[%clk 0:03:01]}  Ng4 {[%clk 0:02:56]} 4. Bf4 {[%clk 0:03:01]}  Nc6 {[%clk 0:02:48]} 5. Nf3 {[%clk 0:03:00]}  Bb4+ {[%clk 0:02:48]} 6. Nbd2 {[%clk 0:02:45]}  Qe7 {[%clk 0:02:46]} 7. e3 {[%clk 0:02:45]}  Ngxe5 {[%clk 0:02:46]} 8. Nxe5 {[%clk 0:02:45]}  Nxe5 {[%clk 0:02:46]} 9. Be2 {[%clk 0:02:46]}  O-O {[%clk 0:02:40]} 10. O-O {[%clk 0:02:46]}  Bxd2 {[%clk 0:02:39]} 11. Qxd2 {[%clk 0:02:46]}  d6 {[%clk 0:02:38]} 12. Qc3 {[%clk 0:02:45]}  b6 {[%clk 0:02:32]} 13. b4 {[%clk 0:02:36]}  Bb7 {[%clk 0:02:32]} 14. Rac1 {[%clk 0:02:35]}  Rfe8 {[%clk 0:02:28]} 15. c5 {[%clk 0:02:34]}  dxc5 {[%clk 0:02:25]} 16. bxc5 {[%clk 0:02:33]}  bxc5 {[%clk 0:02:23]} 17. Qxc5 {[%clk 0:02:31]}  Ng6 {[%clk 0:00:54]} 18. Qxe7 {[%clk 0:02:05]}  Rxe7 {[%clk 0:00:53]} 19. Bxc7 {[%clk 0:02:05]}  Bd5 {[%clk 0:00:50]} 20. a4 {[%clk 0:01:52]}  a5 {[%clk 0:00:37]} 21. Rc5 {[%clk 0:01:42]}  Bb3 {[%clk 0:00:35]} 22. Bb5 {[%clk 0:01:28]}  Nf8 {[%clk 0:00:27]} 23. Bd6 {[%clk 0:01:17]}  Rea7 {[%clk 0:00:26]} 24. Rb1 {[%clk 0:01:11]}  Be6 {[%clk 0:00:23]} 25. Bc4 {[%clk 0:01:04]}  Bxc4 {[%clk 0:00:20]} 26. Rxc4 {[%clk 0:01:05]}  Ne6 {[%clk 0:00:20]} 27. Rbc1 {[%clk 0:01:02]}  g6 {[%clk 0:00:20]} 28. Be5 {[%clk 0:00:59]}  h5 {[%clk 0:00:19]} 29. Rc8+ {[%clk 0:00:59]}  Kh7 {[%clk 0:00:19]} 30. h3 {[%clk 0:00:48]}  g5 {[%clk 0:00:19]} 31. g4 {[%clk 0:00:47]}  h4 {[%clk 0:00:19]} 32. f4 {[%clk 0:00:40]}  Rxc8 {[%clk 0:00:18]} 33. Rxc8 {[%clk 0:00:40]}  gxf4 {[%clk 0:00:18]} 34. exf4 {[%clk 0:00:37]}  Rd7 {[%clk 0:00:18]} 35. Rh8+ {[%clk 0:00:34]} 1-0


[Site "https://www.chess.com"]

[Event "Titled Tuesday Blitz January 03 Late 2023"]
[White "Gschnitzer, Adrian"]
[Black "Schmidt, Harald"]
[WhiteFideId "1270337"]
[BlackFideId "4648358"]
[WhiteElo "2432"]
[BlackElo "2347"]
[Result "0-1"]
[Round "03"]
[TimeControl "180+2"]
[Date "2023.01.03"]
[WhiteClock "0:00:04"]
[BlackClock "0:00:06"]

1. c4 {[%clk 0:02:59]}  c5 {[%clk 0:02:58]} 2. Nf3 {[%clk 0:02:59]}  Nf6 {[%clk 0:02:58]} 3. Nc3 {[%clk 0:02:58]}  Nc6 {[%clk 0:02:58]} 4. d4 {[%clk 0:02:58]}  cxd4 {[%clk 0:02:56]} 5. Nxd4 {[%clk 0:02:59]}  e5 {[%clk 0:02:56]} 6. Nb3 {[%clk 0:02:53]}  Bb4 {[%clk 0:02:54]} 7. g3 {[%clk 0:02:44]}  d5 {[%clk 0:02:51]} 8. cxd5 {[%clk 0:02:32]}  Qxd5 {[%clk 0:02:49]} 9. Qxd5 {[%clk 0:02:30]}  Nxd5 {[%clk 0:02:48]} 10. Bd2 {[%clk 0:02:30]}  Nxc3 {[%clk 0:02:47]} 11. bxc3 {[%clk 0:02:30]}  Be7 {[%clk 0:02:42]} 12. Bg2 {[%clk 0:02:29]}  Be6 {[%clk 0:02:41]} 13. O-O-O {[%clk 0:02:25]}  O-O {[%clk 0:02:37]} 14. Kb2 {[%clk 0:02:22]}  Rfc8 {[%clk 0:02:33]} 15. Be3 {[%clk 0:02:16]}  a5 {[%clk 0:02:30]} 16. Nc5 {[%clk 0:02:11]}  Bf5 {[%clk 0:02:16]} 17. Nd7 {[%clk 0:02:04]}  Rd8 {[%clk 0:01:53]} 18. Nb6 {[%clk 0:01:56]}  Rab8 {[%clk 0:01:53]} 19. Nd5 {[%clk 0:01:47]}  Bf8 {[%clk 0:01:46]} 20. Bb6 {[%clk 0:01:46]}  Rdc8 {[%clk 0:01:44]} 21. Bc7 {[%clk 0:01:30]}  a4 {[%clk 0:01:31]} 22. Bxb8 {[%clk 0:01:24]}  a3+ {[%clk 0:01:30]} 23. Kb3 {[%clk 0:01:15]}  Nxb8 {[%clk 0:01:10]} 24. Nb4 {[%clk 0:01:11]}  Nd7 {[%clk 0:01:06]} 25. Bd5 {[%clk 0:00:46]}  Nc5+ {[%clk 0:01:00]} 26. Kxa3 {[%clk 0:00:43]}  Ra8+ {[%clk 0:00:46]} 27. Kb2 {[%clk 0:00:39]}  Na4+ {[%clk 0:00:46]} 28. Kb3 {[%clk 0:00:27]}  Nc5+ {[%clk 0:00:45]} 29. Kb2 {[%clk 0:00:20]}  Na4+ {[%clk 0:00:44]} 30. Kb3 {[%clk 0:00:18]}  Nc5+ {[%clk 0:00:44]} 31. Kc4 {[%clk 0:00:19]}  Rc8 {[%clk 0:00:43]} 32. Kb5 {[%clk 0:00:16]}  Bd7+ {[%clk 0:00:33]} 33. Kb6 {[%clk 0:00:16]}  Be7 {[%clk 0:00:32]} 34. Bxb7 {[%clk 0:00:13]}  Bd8+ {[%clk 0:00:31]} 35. Ka7 {[%clk 0:00:12]}  Rc7 {[%clk 0:00:29]} 36. Rd5 {[%clk 0:00:09]}  Nxb7 {[%clk 0:00:20]} 37. Rhd1 {[%clk 0:00:06]}  Nd6+ {[%clk 0:00:19]} 38. Ka8 {[%clk 0:00:04]}  Rc8+ {[%clk 0:00:16]} 39. Ka7 {[%clk 0:00:04]}  Nb5+ {[%clk 0:00:13]} 40. Rxb5 {[%clk 0:00:03]}  Bxb5 {[%clk 0:00:13]} 41. Kb7 {[%clk 0:00:04]}  Rc7+ {[%clk 0:00:11]} 42. Kb8 {[%clk 0:00:04]}  Rd7 {[%clk 0:00:10]} 43. Nd5 {[%clk 0:00:03]}  Kf8 {[%clk 0:00:08]} 44. Kc8 {[%clk 0:00:04]}  Ke8 {[%clk 0:00:08]} 45. c4 {[%clk 0:00:04]}  Bxc4 {[%clk 0:00:07]} 46. Nf6+ {[%clk 0:00:03]}  Bxf6 {[%clk 0:00:05]} 47. Rxd7 {[%clk 0:00:04]}  Be6 {[%clk 0:00:06]} 0-1


[Site "https://www.chess.com"]

[Event "Titled Tuesday Blitz January 03 Late 2023"]
[White "Ward, Ieuan C"]
[Black "Altman, Joshua"]
[WhiteFideId "406627"]
[BlackFideId "426210"]
[WhiteElo "2028"]
[BlackElo "2120"]
[Result "1-0"]
[Round "03"]
[TimeControl "180+2"]
[Date "2023.01.03"]
[WhiteClock "0:00:13"]
[BlackClock "0:00:02"]

1. e4 {[%clk 0:03:00]}  e6 {[%clk 0:02:59]} 2. d4 {[%clk 0:03:00]}  d5 {[%clk 0:03:00]} 3. exd5 {[%clk 0:02:55]}  exd5 {[%clk 0:03:00]} 4. Bd3 {[%clk 0:02:55]}  Nc6 {[%clk 0:02:59]} 5. c3 {[%clk 0:02:54]}  Bd6 {[%clk 0:02:59]} 6. Nf3 {[%clk 0:02:54]}  Nge7 {[%clk 0:02:59]} 7. Bg5 {[%clk 0:02:53]}  Bg4 {[%clk 0:02:58]} 8. Bh4 {[%clk 0:02:47]}  Qd7 {[%clk 0:02:56]} 9. Bg3 {[%clk 0:02:45]}  f6 {[%clk 0:02:53]} 10. Nbd2 {[%clk 0:02:44]}  O-O-O {[%clk 0:02:52]} 11. Bxd6 {[%clk 0:02:42]}  Qxd6 {[%clk 0:02:52]} 12. Qc2 {[%clk 0:02:40]}  Kb8 {[%clk 0:02:48]} 13. O-O-O {[%clk 0:02:39]}  a6 {[%clk 0:02:45]} 14. Kb1 {[%clk 0:02:38]}  h5 {[%clk 0:02:42]} 15. h3 {[%clk 0:02:38]}  Bc8 {[%clk 0:02:41]} 16. Rde1 {[%clk 0:02:30]}  g5 {[%clk 0:02:37]} 17. g3 {[%clk 0:02:24]}  Rhe8 {[%clk 0:02:21]} 18. h4 {[%clk 0:02:12]}  g4 {[%clk 0:02:18]} 19. Nh2 {[%clk 0:02:08]}  f5 {[%clk 0:02:16]} 20. Nb3 {[%clk 0:01:48]}  b6 {[%clk 0:02:12]} 21. Qd2 {[%clk 0:01:45]}  Ng6 {[%clk 0:02:01]} 22. Qg5 {[%clk 0:01:41]}  Rg8 {[%clk 0:01:40]} 23. Qxh5 {[%clk 0:01:37]}  f4 {[%clk 0:01:40]} 24. Nxg4 {[%clk 0:01:21]}  fxg3 {[%clk 0:01:28]} 25. fxg3 {[%clk 0:01:20]}  Qxg3 {[%clk 0:01:16]} 26. Bxg6 {[%clk 0:01:16]}  Bxg4 {[%clk 0:01:14]} 27. Qg5 {[%clk 0:01:03]}  Qf3 {[%clk 0:00:31]} 28. h5 {[%clk 0:00:55]}  Bc8 {[%clk 0:00:15]} 29. Rhf1 {[%clk 0:00:50]}  Qh3 {[%clk 0:00:15]} 30. Qe3 {[%clk 0:00:44]}  Qh4 {[%clk 0:00:09]} 31. Ka1 {[%clk 0:00:41]}  Bg4 {[%clk 0:00:05]} 32. Rh1 {[%clk 0:00:38]}  Qf6 {[%clk 0:00:04]} 33. a3 {[%clk 0:00:32]}  Qd6 {[%clk 0:00:04]} 34. Ka2 {[%clk 0:00:30]}  Rdf8 {[%clk 0:00:04]} 35. Rhf1 {[%clk 0:00:27]}  Rc8 {[%clk 0:00:02]} 36. Rg1 {[%clk 0:00:24]}  Bd7 {[%clk 0:00:02]} 37. Qg3 {[%clk 0:00:23]}  Qf6 {[%clk 0:00:02]} 38. Qg5 {[%clk 0:00:22]}  Qh8 {[%clk 0:00:02]} 39. Qxd5 {[%clk 0:00:22]}  Rcd8 {[%clk 0:00:01]} 40. Qe4 {[%clk 0:00:19]}  a5 {[%clk 0:00:02]} 41. d5 {[%clk 0:00:18]}  Na7 {[%clk 0:00:01]} 42. Nd4 {[%clk 0:00:19]}  a4 {[%clk 0:00:02]} 43. Nc6+ {[%clk 0:00:18]}  Nxc6 {[%clk 0:00:02]} 44. dxc6 {[%clk 0:00:19]}  Bc8 {[%clk 0:00:03]} 45. Qxa4 {[%clk 0:00:19]}  Qf6 {[%clk 0:00:03]} 46. Qe4 {[%clk 0:00:19]}  Qd6 {[%clk 0:00:04]} 47. Ka1 {[%clk 0:00:18]}  Rg7 {[%clk 0:00:04]} 48. Qe5 {[%clk 0:00:18]}  Qf8 {[%clk 0:00:02]} 49. Rgf1 {[%clk 0:00:16]}  Qg8 {[%clk 0:00:02]} 50. Qh2 {[%clk 0:00:14]}  Qb3 {[%clk 0:00:02]} 51. Qc2 {[%clk 0:00:13]}  Qc4 {[%clk 0:00:02]} 52. h6 {[%clk 0:00:13]} 1-0


[Site "https://www.chess.com"]